fUST/lending_fUST_20240924
["ID","MTS","AMOUNT","RATE_DAILY","PERIOD"]
[339018103,1727130666435,-500.0,0.0003315,30]
[339018104,1727130666448,-500.0,0.0003315,30]
[339018105,1727130666461,-1122.08,0.0003315,30]
[339018106,1727130666472,-500.0,0.0003315,30]
[339018107,1727130666486,-1000.0,0.0003315,30]
[339018108,1727130666499,-500.0,0.0003315,30]
[339018109,1727130666511,-500.0,0.0003315,30]
[339018110,1727130666521,-500.0,0.0003315,30]
[339018111,1727130666531,-629.26674056,0.0003315,30]
[339018112,1727130666750,-500.0,0.0003315,30]
[339018113,1727130666760,-500.0,0.0003315,30]
[339018114,1727130666772,-455.70222679,0.0003315,30]
[339018115,1727130666781,-500.0,0.0003315,30]
[339018116,1727130666790,-500.0,0.0003315,30]
[339018117,1727130666799,-500.0,0.0003315,30]
[339018118,1727130666810,-500.0,0.0003315,30]
[339018119,1727130666820,-500.0,0.0003315,30]
[339018120,1727130666830,-500.0,0.0003315,30]
[339018121,1727130666843,-500.0,0.0003315,120]
[339018122,1727130666853,-500.0,0.0003315,2]
[339018123,1727130666863,-500.0,0.0003315,30]
[339018124,1727130666872,-655.57,0.0003315,30]
[339018125,1727130666882,-591.66158014,0.0003315,30]
[339018126,1727130666892,-500.0,0.0003315,30]
[339018127,1727130666901,-500.0,0.0003315,30]
[339018128,1727130666910,-500.0,0.0003315,30]
[339018129,1727130666920,-500.0,0.0003315,30]
[339018130,1727130666930,-500.0,0.0003315,30]
[339018131,1727130666941,-645.07,0.0003315,30]
[339018132,1727130666950,-500.0,0.0003315,30]
[339018133,1727130666960,-500.0,0.0003315,30]
[339018134,1727130666969,-500.0,0.0003315,30]
[339018135,1727130666979,-500.0,0.0003315,30]
[339018136,1727130666989,-500.0,0.0003315,30]
[339018137,1727130666998,-500.0,0.0003315,30]
[339018138,1727130667007,-500.0,0.0003315,30]
[339018139,1727130667018,-500.0,0.0003315,30]
[339018140,1727130667028,-500.0,0.0003315,30]
[339018141,1727130667037,-500.0,0.0003315,30]
[339018142,1727130667048,-500.0,0.0003315,30]
[339018143,1727130667057,-500.0,0.0003315,30]
[339018144,1727130667067,-532.96,0.0003315,30]
[339018145,1727130667077,-506.5555306,0.0003315,30]
[339018146,1727130667087,-500.0,0.0003315,30]
[339018147,1727130667096,-500.0,0.0003315,30]
[339018148,1727130667106,-500.0,0.0003315,30]
[339018149,1727130667115,-500.0,0.0003315,30]
[339018150,1727130667125,-500.0,0.0003315,30]
[339018151,1727130667135,-625.74,0.0003315,30]
[339018152,1727130667145,-500.0,0.0003315,30]
[339018153,1727130667154,-500.0,0.0003315,30]
[339018154,1727130667164,-500.0,0.0003315,30]
[339018155,1727130667175,-500.0,0.0003315,30]
[339018156,1727130667185,-500.0,0.0003315,30]
[339018157,1727130667195,-783.45,0.0003315,30]
[339018158,1727130667205,-500.0,0.0003315,30]
[339018159,1727130667215,-500.0,0.0003315,30]
[339018160,1727130667225,-1230.74,0.0003315,30]
[339018161,1727130667235,-500.0,0.0003315,30]
[339018162,1727130667245,-1846.29,0.0003315,30]
[339018163,1727130667254,-500.0,0.0003315,30]
[339018164,1727130667266,-500.0,0.0003315,30]
[339018165,1727130667276,-1397.17,0.0003315,2]
[339018166,1727130667287,-500.0,0.0003315,30]
[339018167,1727130667298,-500.0,0.0003315,30]
[339018168,1727130667307,-500.0,0.0003315,30]
[339018169,1727130667317,-684.0,0.0003315,30]
[339018170,1727130667327,-500.0,0.0003315,30]
[339018171,1727130667339,-501.9642815,0.0003315,30]
[339018172,1727130667350,-500.0,0.0003315,2]
[339018173,1727130667360,-604.33,0.0003315,30]
[339018174,1727130667370,-500.0,0.0003315,30]
[339018175,1727130667380,-500.0,0.0003315,30]
[339018176,1727130667391,-500.0,0.0003315,30]
[339018177,1727130667400,-500.0,0.0003315,30]
[339018178,1727130667410,-500.0,0.0003315,30]
[339018179,1727130667419,-500.0,0.0003315,30]
[339018180,1727130667429,-270.43,0.0003315,30]
[339018181,1727130667438,-500.0,0.0003315,30]
[339018182,1727130667447,-500.0,0.0003315,30]
[339018183,1727130667457,-223.90052132,0.0003315,30]
[339018184,1727130667466,-500.0,0.0003315,30]
[339018185,1727130667476,-177.43,0.0003315,30]
[339018186,1727130667486,-500.0,0.0003315,30]
[339018187,1727130667495,-500.0,0.0003315,30]
[339018188,1727130667505,-500.0,0.0003315,30]
[339018189,1727130667518,-500.0,0.0003315,30]
[339018190,1727130667528,-500.0,0.0003315,30]
[339018191,1727130667539,-500.0,0.0003315,30]
[339018192,1727130667548,-1000.0,0.0003315,120]
[339018193,1727130667558,-825.29,0.0003315,30]
[339018194,1727130667568,-500.0,0.0003315,5]
[339018195,1727130667578,-624.72,0.0003315,30]
[339018196,1727130667588,-500.0,0.0003315,30]
[339018197,1727130667597,-500.0,0.0003315,30]
[339018198,1727130667608,-248.98,0.0003315,30]
[339018199,1727130667617,-500.0,0.0003315,30]
[339018200,1727130667627,-500.0,0.0003315,30]
[339018201,1727130667637,-459.38510729,0.0003315,30]
[339018202,1727130667647,-500.0,0.0003315,30]
[339018203,1727130667656,-514.15,0.0003315,30]
[339018204,1727130667665,-500.0,0.0003315,30]
[339018205,1727130667675,-500.0,0.0003315,30]
[339018206,1727130667685,-500.0,0.0003315,30]
[339018207,1727130667694,-500.0,0.0003315,30]
[339018208,1727130667705,-500.0,0.0003315,30]
[339018209,1727130667715,-500.0,0.0003315,30]
[339018210,1727130667724,-355.66552774,0.0003315,30]
[339018211,1727130667735,-500.0,0.0003315,30]
[339018212,1727130667744,-500.0,0.0003315,30]
[339018213,1727130667754,-500.0,0.0003315,30]
[339018214,1727130667766,-502.74436418,0.0003315,10]
[339018215,1727130667776,-500.0,0.0003315,30]
[339018216,1727130667786,-500.0,0.0003315,30]
[339018217,1727130667796,-741.53,0.0003315,30]
[339018218,1727130667807,-500.0,0.0003315,30]
[339018219,1727130667818,-500.0,0.0003315,30]
[339018220,1727130667827,-500.0,0.0003315,30]
[339018221,1727130667837,-500.0,0.0003315,30]
[339018222,1727130667847,-214.39538452,0.0003315,30]
[339018223,1727130667857,-556.56718885,0.0003315,30]
[339018224,1727130667866,-500.0,0.0003315,30]
[339018225,1727130667876,-500.0,0.0003315,120]
[339018226,1727130667887,-500.0,0.0003315,30]
[339018227,1727130667897,-500.0,0.0003315,30]
[339018228,1727130667907,-500.0,0.0003315,30]
[339018229,1727130667917,-1260.11,0.0003315,30]
[339018230,1727130667926,-500.0,0.0003315,30]
[339018231,1727130667936,-500.0,0.0003315,30]
[339018232,1727130667946,-545.43,0.0003315,30]
[339018233,1727130667955,-500.0,0.0003315,30]
[339018234,1727130667965,-500.0,0.0003315,30]
[339018235,1727130667975,-500.0,0.0003315,30]
[339018236,1727130667985,-339.37533339,0.0003315,30]
[339018237,1727130667995,-536.2,0.0003315,30]
[339018238,1727130668005,-422.9,0.0003315,30]
[339018239,1727130668014,-500.0,0.0003315,30]
[339018240,1727130668024,-1484.78,0.0003315,30]
[339018241,1727130668033,-500.0,0.0003315,30]
[339018242,1727130668043,-500.0,0.0003315,30]
[339018243,1727130668053,-500.0,0.0003315,30]
[339018244,1727130668063,-4278.99,0.0003315,21]
[339018245,1727130668073,-500.0,0.0003315,30]
[339018246,1727130668083,-500.0,0.0003315,30]
[339018247,1727130668093,-500.0,0.0003315,30]
[339018248,1727130668103,-500.0,0.0003315,30]
[339018249,1727130668114,-544.11653232,0.0003315,30]
[339018250,1727130668123,-500.0,0.0003315,30]
[339018251,1727130668134,-500.0,0.0003315,30]
[339018252,1727130668145,-500.0,0.0003315,30]
[339018253,1727130668155,-500.0,0.0003315,30]
[339018254,1727130668164,-500.0,0.0003315,30]
[339018255,1727130668174,-500.0,0.0003315,30]
[339018256,1727130668184,-500.0,0.0003315,30]
[339018257,1727130668194,-500.0,0.0003315,30]
[339018258,1727130668203,-500.0,0.0003315,30]
[339018259,1727130668212,-500.0,0.0003315,30]
[339018260,1727130668222,-729.6,0.0003315,30]
[339018261,1727130668232,-500.0,0.0003315,30]
[339018262,1727130668242,-404.84059177,0.0003315,30]
[339018263,1727130668252,-500.0,0.0003315,30]
[339018264,1727130668262,-500.0,0.0003315,30]
[339018265,1727130668274,-617.05000002,0.0003315,30]
[339018266,1727130668283,-500.0,0.0003315,30]
[339018267,1727130668293,-527.26,0.0003315,30]
[339018268,1727130668303,-1276.76,0.0003315,30]
[339018269,1727130668313,-500.0,0.0003315,30]
[339018270,1727130668322,-452.69454151,0.0003315,30]
[339018271,1727130668332,-500.0,0.0003315,30]
[339018272,1727130668342,-500.0,0.0003315,30]
[339018273,1727130668351,-500.0,0.0003315,30]
[339018274,1727130668361,-500.0,0.0003315,30]
[339018275,1727130668371,-500.0,0.0003315,30]
[339018276,1727130668380,-500.0,0.0003315,30]
[339018277,1727130668390,-500.0,0.0003315,30]
[339018278,1727130668400,-277.43,0.0003315,30]
[339018279,1727130668410,-1463.58,0.0003315,30]
[339018280,1727130668420,-500.0,0.0003315,30]
[339018281,1727130668430,-500.0,0.0003315,30]
[339018282,1727130668440,-524.11603869,0.0003315,30]
[339018283,1727130668449,-1844.92,0.0003315,30]
[339018284,1727130668459,-612.36,0.0003315,30]
[339018285,1727130668468,-500.0,0.0003315,30]
[339018286,1727130668478,-500.0,0.0003315,30]
[339018287,1727130668488,-500.0,0.0003315,7]
[339018288,1727130668497,-500.0,0.0003315,30]
[339018289,1727130668506,-500.0,0.0003315,30]
[339018290,1727130668519,-500.0,0.0003315,30]
[339018291,1727130668529,-500.0,0.0003315,30]
[339018292,1727130668538,-500.0,0.0003315,30]
[339018293,1727130668548,-500.0,0.0003315,30]
[339018294,1727130668557,-500.0,0.0003315,30]
[339018295,1727130668566,-500.0,0.0003315,30]
[339018296,1727130668577,-500.0,0.0003315,30]
[339018297,1727130668587,-500.0,0.0003315,30]
[339018298,1727130668596,-500.0,0.0003315,30]
[339018299,1727130668606,-1266.01,0.0003315,30]
[339018300,1727130668615,-500.0,0.0003315,30]
[339018301,1727130668624,-500.0,0.0003315,30]
[339018302,1727130668634,-1200.54,0.0003315,30]
[339018303,1727130668643,-500.0,0.0003315,30]
[339018304,1727130668653,-501.9,0.0003315,30]
[339018305,1727130668662,-500.0,0.0003315,30]
[339018306,1727130668671,-500.0,0.0003315,30]
[339018307,1727130668681,-1081.62,0.0003315,30]
[339018308,1727130668691,-500.0,0.0003315,30]
[339018309,1727130668701,-580.42276327,0.0003315,30]
[339018310,1727130668711,-526.00008531,0.0003315,30]
[339018311,1727130668720,-500.0,0.0003315,30]
[339018312,1727130668730,-500.0,0.0003315,30]
[339018313,1727130668739,-500.0,0.0003315,30]
[339018314,1727130668749,-527.50115316,0.0003315,30]
[339018315,1727130668758,-500.0,0.0003315,30]
[339018316,1727130668769,-500.0,0.0003315,30]
[339018317,1727130668778,-500.0,0.0003315,30]
[339018318,1727130668787,-500.0,0.0003315,30]
[339018319,1727130668797,-500.0,0.0003315,30]
[339018320,1727130668808,-500.0,0.0003315,30]
[339018321,1727130668818,-500.0,0.0003315,30]
[339018322,1727130668828,-500.0,0.0003315,30]
[339018323,1727130668837,-1820.79,0.0003315,7]
[339018324,1727130668847,-500.0,0.0003315,30]
[339018325,1727130668857,-694.3,0.0003315,30]
[339018326,1727130668867,-500.0,0.0003315,30]
[339018327,1727130668877,-500.0,0.0003315,30]
[339018328,1727130668888,-500.0,0.0003315,30]
[339018329,1727130668897,-500.0,0.0003315,30]
[339018330,1727130668906,-500.0,0.0003315,30]
[339018331,1727130668916,-500.0,0.0003315,30]
[339018332,1727130668925,-500.0,0.0003315,30]
[339018333,1727130668935,-1532.58,0.0003315,30]
[339018334,1727130668945,-500.0,0.0003315,30]
[339018335,1727130668955,-1035.06,0.0003315,30]
[339018336,1727130668965,-40342.48,0.0003315,18]
[339018337,1727130668975,-500.0,0.0003315,30]
[339018338,1727130668985,-500.0,0.0003315,2]
[339018339,1727130668994,-736.16,0.0003315,30]
[339018340,1727130669004,-500.0,0.0003315,30]
[339018341,1727130669014,-500.0,0.0003315,30]
[339018342,1727130669025,-636.67005802,0.0003315,30]
[339018343,1727130669034,-262.775317,0.00033165,2]
[339018344,1727130669044,-150.0,0.00033173,5]
[339018345,1727130669053,-420.0,0.000332,120]
[339018346,1727130669063,-507.33251565,0.00033287,30]
[339018347,1727130669072,-500.0,0.00033287,30]
[339018348,1727130669082,-719.75,0.00033287,30]
[339018349,1727130669091,-462.3874757,0.00033287,30]
[339018350,1727130669101,-500.0,0.00033287,30]
[339018351,1727130669110,-969.66,0.00033287,30]
[339018352,1727130669120,-711.06,0.00033287,30]
[339018353,1727130669129,-514.47,0.00033287,30]
[339018354,1727130669139,-513.89,0.00033287,30]
[339018355,1727130669148,-500.0,0.00033287,2]
[339018356,1727130669158,-584.13,0.00033287,30]
[339018357,1727130669167,-500.0,0.00033287,30]
[339018358,1727130669176,-500.0,0.00033287,30]
[339018359,1727130669186,-500.0,0.00033287,30]
[339018360,1727130669196,-504.32847145,0.00033287,30]
[339018361,1727130669205,-984.17,0.00033287,30]
[339018362,1727130669215,-683.52,0.00033287,30]
[339018363,1727130669225,-500.0,0.00033287,30]
[339018364,1727130669234,-500.0,0.00033287,30]
[339018365,1727130669244,-509.2805997,0.00033287,30]
[339018366,1727130669254,-500.0,0.00033287,30]
[339018367,1727130669264,-610.08,0.00033287,30]
[339018368,1727130669274,-1045.6,0.00033287,7]
[339018369,1727130669283,-859.64,0.00033287,30]
[339018370,1727130669292,-1071.88,0.00033287,30]
[339018371,1727130669301,-607.11,0.00033287,30]
[339018372,1727130669311,-500.0,0.00033287,30]
[339018373,1727130669321,-500.0,0.00033287,30]
[339018374,1727130669331,-500.0,0.00033287,30]
[339018375,1727130669340,-500.0,0.00033287,30]
[339018376,1727130669350,-500.0,0.00033287,30]
[339018377,1727130669360,-500.0,0.00033287,30]
[339018378,1727130669370,-500.0,0.00033287,30]
[339018379,1727130669379,-520.8,0.00033287,30]
[339018380,1727130669389,-678.42,0.00033287,30]
[339018381,1727130669399,-500.0,0.00033287,30]
[339018382,1727130669408,-500.0,0.00033287,30]
[339018383,1727130669417,-581.01,0.00033287,30]
[339018384,1727130669426,-500.0,0.00033287,30]
[339018385,1727130669436,-500.0,0.00033287,30]
[339018386,1727130669445,-500.0,0.00033287,30]
[339018387,1727130669455,-624.97,0.00033287,30]
[339018388,1727130669465,-210.44576697,0.00033287,30]
[339018389,1727130669475,-500.0,0.00033287,30]
[339018390,1727130669485,-500.0,0.00033287,30]
[339018391,1727130669494,-746.07,0.00033287,30]
[339018392,1727130669504,-500.0,0.00033287,30]
[339018393,1727130669515,-500.0,0.00033287,30]
[339018394,1727130669524,-500.0,0.00033287,30]
[339018395,1727130669534,-606.75,0.00033287,30]
[339018396,1727130669544,-500.0,0.00033287,30]
[339018397,1727130669553,-500.0,0.00033287,7]
[339018398,1727130669563,-500.0,0.00033287,30]
[339018399,1727130669572,-500.0,0.00033287,30]
[339018400,1727130669582,-503.01842019,0.00033287,30]
[339018401,1727130669592,-500.0,0.00033287,30]
[339018402,1727130669602,-500.0,0.00033287,30]
[339018403,1727130669611,-500.0,0.00033287,30]
[339018404,1727130669621,-500.0,0.00033287,30]
[339018405,1727130669630,-500.0,0.00033287,30]
[339018406,1727130669639,-500.0,0.00033287,30]
[339018407,1727130669648,-572.02,0.00033287,30]
[339018408,1727130669797,-500.0,0.00033287,30]
[339018409,1727130669808,-527.38,0.00033287,30]
[339018410,1727130669819,-500.0,0.00033287,30]
[339018411,1727130669828,-500.0,0.00033287,30]
[339018412,1727130669838,-500.0,0.00033287,30]
[339018413,1727130669848,-500.0,0.00033287,30]
[339018414,1727130669858,-2283.61,0.00033287,30]
[339018415,1727130669867,-500.0,0.00033287,30]
[339018416,1727130669877,-500.0,0.00033287,30]
[339018417,1727130669888,-500.0,0.00033287,30]
[339018418,1727130669897,-500.0,0.00033287,30]
[339018419,1727130669907,-500.0,0.00033287,30]
[339018420,1727130669917,-500.0,0.00033287,30]
[339018421,1727130669927,-500.0,0.00033287,30]
[339018422,1727130669937,-500.0,0.00033287,30]
[339018423,1727130669946,-729.07,0.00033287,25]
[339018424,1727130669955,-500.0,0.00033287,30]
[339018425,1727130669964,-500.0,0.00033287,30]
[339018426,1727130669973,-500.0,0.00033287,30]
[339018427,1727130669983,-500.0,0.00033287,30]
[339018428,1727130669993,-500.0,0.00033287,30]
[339018429,1727130670003,-500.0,0.00033287,30]
[339018430,1727130670012,-500.0,0.00033287,30]
[339018431,1727130670022,-500.0,0.00033287,30]
[339018432,1727130670031,-236.53435449,0.00033287,30]
[339018433,1727130670041,-500.0,0.00033287,30]
[339018434,1727130670050,-500.0,0.00033287,30]
[339018435,1727130670059,-517.28052078,0.00033287,30]
[339018436,1727130670069,-500.0,0.00033287,30]
[339018437,1727130670078,-500.0,0.00033287,30]
[339018438,1727130670088,-633.14606128,0.00033287,30]
[339018439,1727130670097,-500.0,0.00033287,30]
[339018440,1727130670107,-500.0,0.00033287,30]
[339018441,1727130670116,-500.0,0.00033287,30]
[339018442,1727130670126,-500.0,0.00033287,30]
[339018443,1727130670136,-500.0,0.00033287,30]
[339018444,1727130670145,-500.0,0.00033287,30]
[339018445,1727130670154,-500.0,0.00033287,30]
[339018446,1727130670164,-502.62352532,0.00033287,30]
[339018447,1727130670174,-500.0,0.00033287,30]
[339018448,1727130670184,-500.0,0.00033287,30]
[339018449,1727130670193,-497.27009121,0.00033287,30]
[339018450,1727130670203,-500.0,0.00033287,30]
[339018451,1727130670213,-639.96,0.00033287,30]
[339018452,1727130670222,-3024.97,0.00033287,30]
[339018453,1727130670232,-500.0,0.00033287,30]
[339018454,1727130670242,-500.0,0.00033287,30]
[339018455,1727130670251,-500.0,0.00033287,30]
[339018456,1727130670261,-500.0,0.00033287,30]
[339018457,1727130670271,-500.0,0.00033287,30]
[339018458,1727130670281,-500.0,0.00033287,30]
[339018459,1727130670290,-1122.08,0.00033287,30]
[339018460,1727130670300,-500.0,0.00033287,30]
[339018461,1727130670309,-1000.0,0.00033287,30]
[339018462,1727130670319,-500.0,0.00033287,30]
[339018463,1727130670330,-500.0,0.00033287,30]
[339018464,1727130670339,-500.0,0.00033287,30]
[339018465,1727130670349,-538.81802968,0.00033287,30]
[339018466,1727130670358,-500.0,0.00033287,30]
[339018467,1727130670368,-500.0,0.00033287,30]
[339018468,1727130670377,-500.0,0.00033287,30]
[339018469,1727130670386,-500.0,0.00033287,30]
[339018470,1727130670396,-500.0,0.00033287,30]
[339018471,1727130670405,-500.0,0.00033287,120]
[339018472,1727130670415,-500.0,0.00033287,2]
[339018473,1727130670424,-500.0,0.00033287,30]
[339018474,1727130670433,-655.57,0.00033287,30]
[339018475,1727130670443,-500.0,0.00033287,30]
[339018476,1727130670452,-500.0,0.00033287,30]
[339018477,1727130670461,-500.0,0.00033287,30]
[339018478,1727130670471,-500.0,0.00033287,30]
[339018479,1727130670481,-645.07,0.00033287,30]
[339018480,1727130670490,-500.0,0.00033287,30]
[339018481,1727130670499,-500.0,0.00033287,30]
[339018482,1727130670509,-500.0,0.00033287,30]
[339018483,1727130670518,-500.0,0.00033287,30]
[339018484,1727130670527,-500.0,0.00033287,30]
[339018485,1727130670536,-500.0,0.00033287,30]
[339018486,1727130670546,-500.0,0.00033287,30]
[339018487,1727130670555,-500.0,0.00033287,30]
[339018488,1727130670564,-500.0,0.00033287,30]
[339018489,1727130670573,-500.0,0.00033287,30]
[339018490,1727130670582,-532.96,0.00033287,30]
[339018491,1727130670591,-500.0,0.00033287,30]
[339018492,1727130670601,-500.0,0.00033287,30]
[339018493,1727130670610,-500.0,0.00033287,30]
[339018494,1727130670619,-500.0,0.00033287,30]
[339018495,1727130670628,-500.0,0.00033287,30]
[339018496,1727130670637,-625.74,0.00033287,30]
[339018497,1727130670646,-500.0,0.00033287,30]
[339018498,1727130670655,-500.0,0.00033287,30]
[339018499,1727130670664,-304.09031705,0.00033287,30]
[339018500,1727130670673,-500.0,0.00033287,30]
[339018501,1727130670683,-500.0,0.00033287,30]
[339018502,1727130670692,-783.45,0.00033287,30]
[339018503,1727130670702,-500.0,0.00033287,30]
[339018504,1727130670711,-500.0,0.00033287,30]
[339018505,1727130670720,-1230.74,0.00033287,30]
[339018506,1727130670729,-500.0,0.00033287,30]
[339018507,1727130670738,-1846.29,0.00033287,30]
[339018508,1727130670748,-500.0,0.00033287,30]
[339018509,1727130670758,-584.43606522,0.00033287,30]
[339018510,1727130670767,-1397.17,0.00033287,2]
[339018511,1727130670777,-500.0,0.00033287,30]
[339018512,1727130670786,-500.0,0.00033287,30]
[339018513,1727130670795,-684.0,0.00033287,30]
[339018514,1727130670804,-500.0,0.00033287,30]
[339018515,1727130670817,-604.33,0.00033287,30]
[339018516,1727130670827,-500.0,0.00033287,30]
[339018517,1727130670837,-310.955504,0.00033287,30]
[339018518,1727130670846,-327.22299324,0.00033287,30]
[339018519,1727130670856,-500.0,0.00033287,30]
[339018520,1727130670865,-500.0,0.00033287,30]
[339018521,1727130670875,-500.0,0.00033287,30]
[339018522,1727130670885,-335.45954704,0.00033287,30]
[339018523,1727130670894,-500.0,0.00033287,30]
[339018524,1727130670903,-500.0,0.00033287,30]
[339018525,1727130670912,-500.0,0.00033287,30]
[339018526,1727130670922,-500.0,0.00033287,30]
[339018527,1727130670931,-500.0,0.00033287,30]
[339018528,1727130670940,-500.0,0.00033287,30]
[339018529,1727130670949,-500.0,0.00033287,30]
[339018530,1727130670958,-1000.0,0.00033287,120]
[339018531,1727130670968,-825.29,0.00033287,30]
[339018532,1727130670979,-500.0,0.00033287,5]
[339018533,1727130670988,-624.72,0.00033287,30]
[339018534,1727130670997,-500.0,0.00033287,30]
[339018535,1727130671007,-500.0,0.00033287,30]
[339018536,1727130671017,-248.98,0.00033287,30]
[339018537,1727130671027,-500.0,0.00033287,30]
[339018538,1727130671037,-500.0,0.00033287,30]
[339018539,1727130671046,-514.15,0.00033287,30]
[339018540,1727130671055,-500.0,0.00033287,30]
[339018541,1727130671066,-500.0,0.00033287,30]
[339018542,1727130671075,-500.0,0.00033287,30]
[339018543,1727130671084,-500.0,0.00033287,30]
[339018544,1727130671093,-500.0,0.00033287,30]
[339018545,1727130671102,-500.0,0.00033287,30]
[339018546,1727130671112,-500.0,0.00033287,30]
[339018547,1727130671121,-500.0,0.00033287,30]
[339018548,1727130671131,-500.0,0.00033287,30]
[339018549,1727130671140,-500.0,0.00033287,30]
[339018550,1727130671150,-500.0,0.00033287,30]
[339018551,1727130671159,-741.53,0.00033287,30]
[339018552,1727130671169,-500.0,0.00033287,30]
[339018553,1727130671178,-500.0,0.00033287,30]
[339018554,1727130671187,-602.12852582,0.00033287,30]
[339018555,1727130671197,-500.0,0.00033287,30]
[339018556,1727130671206,-500.0,0.00033287,30]
[339018557,1727130671215,-500.0,0.00033287,120]
[339018558,1727130671223,-500.0,0.00033287,30]
[339018559,1727130671232,-500.0,0.00033287,30]
[339018560,1727130671241,-500.0,0.00033287,30]
[339018561,1727130671250,-1260.11,0.00033287,30]
[339018562,1727130671259,-500.0,0.00033287,30]
[339018563,1727130671270,-500.0,0.00033287,30]
[339018564,1727130671279,-545.43,0.00033287,30]
[339018565,1727130671288,-500.0,0.00033287,30]
[339018566,1727130671297,-500.0,0.00033287,30]
[339018567,1727130671306,-500.0,0.00033287,30]
[339018568,1727130671315,-536.2,0.00033287,30]
[339018569,1727130671324,-500.0,0.00033287,30]
[339018570,1727130671333,-1484.78,0.00033287,30]
[339018571,1727130671342,-409.61247302,0.00033287,30]
[339018572,1727130671351,-500.0,0.00033287,30]
[339018573,1727130671360,-500.0,0.00033287,30]
[339018574,1727130671370,-4278.99,0.00033287,21]
[339018575,1727130671380,-500.0,0.00033287,30]
[339018576,1727130671389,-500.0,0.00033287,30]
[339018577,1727130671399,-500.0,0.00033287,30]
[339018578,1727130671408,-500.0,0.00033287,30]
[339018579,1727130671417,-500.0,0.00033287,30]
[339018580,1727130671426,-500.0,0.00033287,30]
[339018581,1727130671435,-500.0,0.00033287,30]
[339018582,1727130671444,-500.0,0.00033287,30]
[339018583,1727130671453,-500.0,0.00033287,30]
[339018584,1727130671463,-500.0,0.00033287,30]
[339018585,1727130671472,-500.0,0.00033287,30]
[339018586,1727130671482,-500.0,0.00033287,30]
[339018587,1727130671490,-500.0,0.00033287,30]
[339018588,1727130671499,-729.6,0.00033287,30]
[339018589,1727130671509,-500.0,0.00033287,30]
[339018590,1727130671519,-315.11896221,0.00033287,30]
[339018591,1727130671528,-500.0,0.00033287,30]
[339018592,1727130671537,-500.0,0.00033287,30]
[339018593,1727130671547,-527.26,0.00033287,30]
[339018594,1727130671556,-1276.76,0.00033287,30]
[339018595,1727130671564,-500.0,0.00033287,30]
[339018596,1727130671574,-500.0,0.00033287,30]
[339018597,1727130671583,-500.0,0.00033287,30]
[339018598,1727130671593,-500.0,0.00033287,30]
[339018599,1727130671602,-502.1522072,0.00033287,30]
[339018600,1727130671611,-298.61617405,0.00033287,30]
[339018601,1727130671620,-573.14771772,0.00033287,30]
[339018602,1727130671629,-500.0,0.00033287,30]